bitfinex-derivatives/quotes_BTCF0:USTF0_20241227
["timestamp","ask_amount","ask_price","bid_price","bid_amount"]
[1735319449479,0.053145,94219.0,94217.0,0.007]
[1735319450169,0.3648,94223.0,94217.0,0.006]
[1735319450682,0.003,94219.0,94213.0,0.053147]
[1735319450976,0.004,94219.0,94217.0,0.006]
[1735319451182,0.003,94219.0,94213.0,0.053147]
[1735319451378,0.3648,94223.0,94217.0,0.006]
[1735319451782,0.37540827,94223.0,94213.0,0.053147]
[1735319451983,0.001,94219.0,94213.0,0.060147]
[1735319452280,0.003,94219.0,94213.0,0.060147]
[1735319452883,0.053145,94218.0,94213.0,0.007]
[1735319453482,0.053145,94218.0,94209.0,0.3608]
[1735319453681,0.053145,94218.0,94217.0,0.006]
[1735319454282,0.053146,94217.0,94213.0,0.007]
[1735319454677,0.053147,94215.0,94213.0,0.007]
[1735319454876,0.3608,94214.0,94194.0,0.00159228]
[1735319455080,0.053158,94195.0,94194.0,0.00159228]
[1735319455981,0.3608,94214.0,94194.0,0.00159228]
[1735319455982,0.3608,94206.0,94194.0,0.00159228]
[1735319456174,0.3608,94206.0,94205.0,0.053152]
[1735319456372,0.3608,94214.0,94205.0,0.3608]
[1735319456572,0.003,94217.0,94213.0,0.3668]
[1735319456778,0.003,94217.0,94215.0,0.053147]
[1735319456982,0.002,94217.0,94215.0,0.053147]
[1735319457183,0.3608,94249.0,94236.0,0.053135]
[1735319457581,0.053128,94248.0,94236.0,0.053135]
[1735319457894,0.05313,94246.0,94236.0,0.053135]
[1735319458286,0.05313,94244.0,94236.0,0.053135]
[1735319458478,0.053137,94232.0,94224.0,0.3608]
[1735319458673,0.053137,94232.0,94224.0,0.413941]
[1735319459388,0.3608,94233.0,94224.0,0.3608]
[1735319459582,0.053141,94226.0,94224.0,0.3608]
[1735319460082,0.053144,94220.0,94214.0,0.053147]
[1735319460386,0.3608,94225.0,94205.0,0.36239186]
[1735319460387,0.053145,94219.0,94217.0,0.0102492]
[1735319460597,0.053148,94214.0,94206.0,0.0376]
[1735319461095,0.053148,94214.0,94206.0,0.090751]
[1735319461385,0.002,94220.0,94219.0,0.053144]
[1735319461685,0.3608,94258.0,94224.0,0.053141]
[1735319461887,0.053123,94257.0,94248.0,0.413928]
[1735319462080,0.053123,94257.0,94251.0,0.053126]
[1735319462394,0.3608,94258.0,94249.0,0.0361]
[1735319462690,0.053121,94261.0,94255.0,0.053124]
[1735319462988,0.3608,94271.0,94249.0,0.04670561]
[1735319463191,0.053118,94265.0,94258.0,0.053122]
[1735319463486,0.3608,94271.0,94253.0,0.053125]
[1735319463685,0.053116,94269.0,94260.0,0.053121]
[1735319463990,0.008,94261.0,94260.0,0.053121]
[1735319465290,0.017,94261.0,94260.0,0.054121]
[1735319465491,0.070121,94261.0,94260.0,0.001]
[1735319465986,0.0451,94261.0,94235.0,0.053135]
[1735319466191,0.3608,94250.0,94235.0,0.053135]
[1735319466392,0.413927,94250.0,94235.0,0.053135]
[1735319466591,0.053128,94249.0,94235.0,0.053135]
[1735319466885,0.52332318,94250.0,94230.0,0.035]
[1735319467095,0.053132,94242.0,94230.0,0.035]
[1735319467276,0.053133,94240.0,94230.0,0.035]
[1735319467474,0.52332318,94250.0,94230.0,0.035]
[1735319467682,0.053132,94242.0,94230.0,0.035]
[1735319468091,0.053132,94242.0,94233.0,0.053136]
[1735319468288,0.058132,94242.0,94233.0,0.053136]
[1735319468785,0.005,94242.0,94230.0,0.035]
[1735319468983,0.005,94242.0,94236.0,0.41552668]
[1735319469979,0.005,94242.0,94236.0,0.36239168]
[1735319470184,0.058132,94242.0,94236.0,0.36239168]
[1735319470584,0.053133,94239.0,94236.0,0.36239168]
[1735319470781,0.053134,94237.0,94236.0,0.36239168]
[1735319470983,0.413934,94237.0,94207.0,0.0351]
[1735319471186,0.3608,94219.0,94208.0,0.08795]
[1735319471386,0.053146,94217.0,94208.0,0.08795]
[1735319471589,0.053146,94217.0,94208.0,0.0348]
[1735319471790,0.053146,94217.0,94210.0,0.3608]
[1735319473287,0.053141,94225.0,94217.0,0.053145]
[1735319473487,0.001,94219.0,94218.0,0.3608]
[1735319473888,0.053144,94220.0,94218.0,0.3608]
[1735319474194,0.053144,94219.0,94218.0,0.3608]
[1735319474591,0.054144,94219.0,94218.0,0.3658]
[1735319475296,0.053144,94219.0,94218.0,0.3658]
[1735319475486,0.002,94219.0,94218.0,0.3658]
[1735319476195,0.001,94220.0,94218.0,0.4036]
[1735319476493,0.3608,94240.0,94238.0,0.053133]
[1735319476792,0.3608,94240.0,94239.0,0.63]
[1735319476991,0.3608,94240.0,94239.0,0.668]
[1735319477189,0.3608,94248.0,94247.0,0.053129]
[1735319477382,0.053121,94262.0,94254.0,0.053124]
[1735319477792,0.053122,94258.0,94254.0,0.053124]
[1735319478592,0.008,94262.0,94259.0,0.053122]
[1735319478800,0.008,94262.0,94261.0,0.053121]
[1735319479096,0.3608,94279.0,94273.0,0.053114]
[1735319479301,0.053108,94283.0,94274.0,0.053113]
[1735319479498,0.053111,94279.0,94270.0,0.3608]
[1735319479696,0.3608,94290.0,94261.0,0.63]
[1735319479697,0.053115,94271.0,94261.0,0.63]
[1735319479896,0.008,94262.0,94261.0,0.683121]
[1735319480195,0.008,94262.0,94261.0,0.053121]
[1735319480392,0.053115,94271.0,94261.0,0.053121]
[1735319480589,0.053115,94271.0,94259.0,0.3608]
[1735319480790,0.053115,94271.0,94265.0,0.053118]
[1735319480997,0.053116,94270.0,94261.0,0.001]
[1735319481294,0.005,94262.0,94261.0,0.001]
[1735319481489,0.3658,94262.0,94261.0,0.001]
[1735319481686,0.053124,94256.0,94243.0,0.47608]
[1735319481988,0.053124,94256.0,94240.0,0.3608]
[1735319482189,0.053124,94256.0,94242.0,0.053131]
[1735319482900,0.053124,94256.0,94240.0,0.3608]
[1735319483905,0.055124,94256.0,94240.0,0.3608]
[1735319484404,0.055124,94256.0,94234.0,0.053136]
[1735319484700,0.060124,94256.0,94234.0,0.053136]
[1735319484996,0.307,94256.0,94232.0,0.3608]
[1735319485303,0.307,94256.0,94224.0,0.3608]
[1735319485304,0.3608,94240.0,94224.0,0.3608]
[1735319485503,0.053137,94233.0,94224.0,0.3608]
[1735319486000,0.3608,94240.0,94224.0,0.3608]
[1735319486207,0.3608,94240.0,94238.0,0.053133]
[1735319486991,0.3618,94240.0,94238.0,0.053133]
[1735319487595,0.3618,94240.0,94238.0,0.058133]
[1735319487907,0.3638,94240.0,94238.0,0.058133]
[1735319488605,0.3618,94240.0,94238.0,0.058133]
[1735319488805,0.003,94240.0,94238.0,0.058133]
[1735319488997,0.003,94240.0,94239.0,0.0692]
[1735319489814,0.3608,94258.0,94239.0,0.0692]
[1735319490002,0.3608,94258.0,94245.0,0.3608]
[1735319490508,0.28455763,94250.0,94248.0,0.053128]
[1735319491504,0.28455763,94251.0,94245.0,0.3628]
[1735319491805,0.28455763,94251.0,94250.0,0.053127]
[1735319492500,0.31617515,94255.0,94250.0,0.053127]
[1735319493000,0.003,94251.0,94250.0,0.053127]
[1735319494701,0.31917515,94255.0,94250.0,0.053127]
[1735319494911,0.31917515,94255.0,94254.0,0.3608]
[1735319495297,0.053129,94246.0,94245.0,0.3608]
[1735319497005,0.05314,94227.0,94226.0,0.00159152]
[1735319497208,0.41394,94227.0,94226.0,0.00159152]
[1735319497712,0.76690586,94227.0,94207.0,0.00159237]
[1735319498005,0.76690586,94227.0,94193.0,0.19041993]
[1735319498006,0.053158,94194.0,94193.0,0.19041993]
[1735319498196,0.413958,94194.0,94193.0,0.19041993]
[1735319498393,0.413958,94194.0,94193.0,0.13531993]
[1735319498902,0.413958,94194.0,94189.0,0.25389325]
[1735319498903,0.46692725,94194.0,94161.0,0.00148]
[1735319499103,0.3608,94166.0,94161.0,0.053177]
[1735319500106,0.3608,94166.0,94160.0,0.47748]
[1735319500307,0.3618,94166.0,94162.0,0.053176]
[1735319501601,0.3618,94166.0,94162.0,0.056176]
[1735319502203,0.3618,94166.0,94162.0,0.053176]
[1735319502409,0.3618,94166.0,94162.0,0.055176]
[1735319502606,0.3618,94166.0,94162.0,0.062176]
[1735319503612,0.3608,94166.0,94162.0,0.055176]
[1735319503908,0.3618,94166.0,94162.0,0.062176]
[1735319504117,0.3618,94166.0,94163.0,0.63]
[1735319505012,0.001,94166.0,94163.0,0.63]
[1735319505207,0.001,94166.0,94164.0,0.053175]
[1735319505715,0.001,94166.0,94163.0,0.63948]
[1735319505900,0.001,94166.0,94163.0,0.638]
[1735319506108,0.053175,94164.0,94163.0,0.008]
[1735319506909,0.053175,94164.0,94163.0,0.001]
[1735319507109,0.413975,94164.0,94163.0,0.001]
[1735319507414,0.413975,94164.0,94142.0,0.00159285]
[1735319507415,0.053179,94159.0,94142.0,0.05477985]
[1735319507614,0.3608,94147.0,94142.0,0.00159285]
[1735319508218,0.3608,94147.0,94146.0,0.053186]
[1735319508807,0.001,94164.0,94150.0,0.053183]
[1735319509007,0.05993343,94166.0,94158.0,0.3608]
[1735319510716,0.053176,94164.0,94158.0,0.3628]
[1735319511218,0.053176,94164.0,94158.0,0.3698]
[1735319511917,0.053176,94164.0,94158.0,0.3628]
[1735319512109,0.054176,94164.0,94158.0,0.3698]
[1735319512516,0.053176,94163.0,94158.0,0.3698]
[1735319513317,0.001,94164.0,94158.0,0.422978]
[1735319513518,0.001,94164.0,94160.0,0.053177]
[1735319514616,0.001,94163.0,94160.0,0.055177]
[1735319515016,0.053173,94169.0,94160.0,0.055177]
[1735319515218,0.001,94164.0,94160.0,0.062177]
[1735319515710,0.001,94163.0,94160.0,0.062177]
[1735319516718,0.001,94163.0,94161.0,0.053177]
[1735319516920,0.001,94163.0,94161.0,0.088977]
[1735319517317,0.001,94164.0,94161.0,0.088977]
[1735319517824,0.053172,94171.0,94161.0,0.090977]
[1735319518130,0.054176,94163.0,94161.0,0.009]
[1735319518518,0.053176,94163.0,94161.0,0.009]
[1735319519222,0.3608,94167.0,94161.0,0.009]
[1735319519625,0.413974,94167.0,94161.0,0.009]
[1735319519924,0.3608,94167.0,94161.0,0.009]
[1735319520420,0.053176,94162.0,94161.0,0.009]
[1735319521230,0.40620051,94162.0,94128.0,0.00159404]
[1735319521415,0.40620051,94162.0,94109.0,0.3608]
[1735319521416,0.3608,94129.0,94109.0,0.3608]
[1735319521726,0.053202,94118.0,94109.0,0.3608]
[1735319522520,0.52332318,94120.0,94109.0,0.3608]
[1735319522818,0.053204,94115.0,94109.0,0.3608]
[1735319523221,0.52332318,94120.0,94109.0,0.3608]
[1735319523420,0.053204,94114.0,94109.0,0.3608]
[1735319523627,0.053204,94114.0,94109.0,0.3618]
[1735319523827,0.053204,94114.0,94109.0,0.3658]
[1735319524523,0.3608,94154.0,94113.0,0.3608]
[1735319524726,0.053189,94141.0,94139.0,0.3608]
[1735319524929,0.053189,94141.0,94140.0,0.63]
[1735319525642,0.053189,94141.0,94139.0,0.3608]
[1735319527025,0.055189,94141.0,94139.0,0.3608]
[1735319527217,0.053192,94134.0,94124.0,0.053197]
[1735319527423,0.053192,94134.0,94128.0,0.3608]
[1735319527820,0.053192,94134.0,94129.0,0.053195]
[1735319528222,0.053193,94132.0,94128.0,0.3608]
[1735319528633,0.053193,94132.0,94128.0,0.3638]
[1735319528924,0.053195,94130.0,94128.0,0.3638]
[1735319529316,0.001,94134.0,94128.0,0.3638]
[1735319530131,0.054192,94134.0,94128.0,0.3638]
[1735319530632,0.001,94132.0,94128.0,0.3628]
[1735319530923,0.001,94132.0,94128.0,0.3057]
[1735319530924,0.053195,94130.0,94128.0,0.3057]
[1735319531131,0.053198,94125.0,94114.0,0.3608]
[1735319531332,0.053198,94125.0,94115.0,0.053203]
[1735319531532,0.053198,94125.0,94116.0,0.053202]
[1735319532038,0.001,94132.0,94130.0,0.053195]
[1735319532333,0.053186,94145.0,94135.0,0.053192]
[1735319532535,0.053187,94144.0,94139.0,0.3608]
[1735319533035,0.053183,94151.0,94139.0,0.3608]
[1735319533223,0.00060001,94153.0,94147.0,0.3608]
[1735319533430,0.00159368,94164.0,94162.0,0.053176]
[1735319533628,0.00159368,94164.0,94163.0,0.3608]
[1735319533825,0.00159368,94164.0,94163.0,0.3975]
[1735319534619,0.01059368,94164.0,94163.0,0.3975]
[1735319535039,0.00159368,94164.0,94163.0,0.3975]
[1735319535331,0.00659368,94164.0,94163.0,0.3975]
[1735319535531,0.053179,94157.0,94152.0,0.3608]
[1735319535729,0.05318,94156.0,94152.0,0.3608]
[1735319536822,0.053181,94155.0,94152.0,0.3608]
[1735319537725,0.053182,94152.0,94141.0,0.3608]
[1735319538727,0.053182,94152.0,94146.0,0.053185]
[1735319539829,0.055182,94152.0,94146.0,0.053185]
[1735319540033,0.002,94152.0,94146.0,0.053185]
[1735319540233,0.053183,94151.0,94146.0,0.053185]
[1735319540429,0.053183,94151.0,94141.0,0.3638]
[1735319540932,0.053183,94151.0,94146.0,0.001]
[1735319541327,0.002,94152.0,94146.0,0.001]
[1735319541527,0.002,94152.0,94151.0,0.3608]
[1735319541929,0.00159368,94164.0,94163.0,0.053176]
[1735319542131,0.00159368,94164.0,94163.0,0.413976]
[1735319542329,0.22020475,94171.0,94163.0,0.3608]
[1735319542525,0.22020475,94171.0,94170.0,0.053172]
[1735319542936,0.053168,94178.0,94170.0,0.053172]
[1735319543335,0.16252318,94180.0,94164.0,0.0361]
[1735319543542,0.05317,94174.0,94166.0,0.053174]
[1735319543838,0.003,94171.0,94169.0,0.053172]
[1735319544032,0.22020475,94189.0,94188.0,0.053162]
[1735319544228,0.22020475,94189.0,94188.0,0.413962]
[1735319545030,0.22020475,94189.0,94188.0,0.3608]
[1735319545237,0.053161,94190.0,94188.0,0.3608]
[1735319545437,0.00159301,94195.0,94188.0,0.3608]
[1735319546144,0.36136001,94208.0,94197.0,0.053156]
[1735319546345,0.36136001,94208.0,94198.0,0.3608]
[1735319546540,0.053151,94207.0,94198.0,0.413956]
[1735319547139,0.053151,94207.0,94199.0,0.053155]
[1735319547334,0.053151,94207.0,94201.0,0.053154]
[1735319548042,0.3608,94208.0,94198.0,0.3608]
[1735319548243,0.3608,94208.0,94198.0,0.3618]
[1735319548442,0.3608,94208.0,94204.0,0.053152]
[1735319549639,0.053155,94200.0,94198.0,0.001]
[1735319549848,0.3987,94199.0,94179.0,0.3608]
[1735319550233,0.3608,94206.0,94189.0,0.3608]
[1735319550441,0.3608,94206.0,94201.0,0.053154]
[1735319551240,0.3608,94206.0,94198.0,0.3608]
[1735319551550,0.053153,94205.0,94198.0,0.3608]
[1735319551749,0.36136001,94206.0,94198.0,0.3608]
[1735319551944,0.3608,94217.0,94198.0,0.3608]
[1735319551945,0.053149,94211.0,94201.0,0.053154]
[1735319552151,0.36136001,94212.0,94200.0,0.16252318]
[1735319552353,0.00823029,94223.0,94208.0,0.3608]
[1735319552651,0.36136001,94227.0,94217.0,0.3608]
[1735319552849,0.3608,94227.0,94217.0,0.3608]
[1735319553154,0.05314,94226.0,94217.0,0.3608]
[1735319553454,0.053143,94221.0,94210.0,0.3608]
[1735319553653,0.053143,94221.0,94210.0,0.413949]
[1735319554149,0.053143,94221.0,94217.0,0.001]
[1735319554653,0.058143,94221.0,94213.0,0.053147]
[1735319554848,0.005,94221.0,94210.0,0.3608]
[1735319555043,0.16252318,94220.0,94210.0,0.3608]
[1735319555240,0.053148,94212.0,94210.0,0.3608]
[1735319555844,0.053152,94206.0,94199.0,0.0371]
[1735319556152,0.053147,94214.0,94198.0,0.36239224]
[1735319556358,0.053147,94214.0,94204.0,0.053153]
[1735319556747,0.053149,94211.0,94204.0,0.053153]
[1735319557457,0.053155,94200.0,94198.0,0.36339224]
[1735319557752,0.3608,94199.0,94180.0,0.3608]
[1735319558051,0.053165,94182.0,94180.0,0.3608]
[1735319558451,0.3608,94190.0,94180.0,0.3608]
[1735319558656,0.3608,94189.0,94180.0,0.413966]
[1735319559454,0.053162,94188.0,94180.0,0.421966]
[1735319559652,0.36140001,94189.0,94180.0,0.3688]
[1735319559953,0.25166258,94181.0,94180.0,0.3618]
[1735319560157,0.25166258,94181.0,94180.0,0.3698]
[1735319560653,0.25166258,94181.0,94180.0,0.3618]
[1735319560855,0.25166258,94181.0,94180.0,0.009]
[1735319561047,0.053172,94170.0,94162.0,0.3608]
[1735319561542,0.053176,94163.0,94162.0,0.3608]
[1735319561743,0.0378,94172.0,94162.0,0.3608]
[1735319561954,0.3608,94173.0,94171.0,0.3608]
[1735319561955,0.00064,94173.0,94171.0,0.3608]
[1735319562160,0.61302259,94181.0,94171.0,0.3608]
[1735319562346,0.61246258,94181.0,94171.0,0.3608]
[1735319562548,0.66562858,94181.0,94180.0,0.005]
[1735319563164,0.66562858,94181.0,94171.0,0.3608]
[1735319563165,0.05317,94175.0,94171.0,0.3628]
[1735319563547,0.61302259,94181.0,94171.0,0.3628]
[1735319563548,0.05317,94174.0,94171.0,0.3628]
[1735319563756,0.053171,94173.0,94171.0,0.3608]
[1735319564352,0.66562858,94181.0,94171.0,0.3608]
[1735319564559,0.66562858,94181.0,94174.0,0.053169]
[1735319564859,0.413966,94181.0,94174.0,0.053169]
[1735319565054,0.3608,94181.0,94171.0,0.3608]
[1735319565254,0.053169,94176.0,94171.0,0.3608]
[1735319565459,0.36140001,94181.0,94180.0,0.053166]
[1735319565661,0.053159,94193.0,94180.0,0.3608]
[1735319565854,0.053159,94193.0,94189.0,0.3608]
[1735319566159,0.00056001,94194.0,94192.0,0.053159]
[1735319566463,0.00056001,94200.0,94195.0,0.053157]
[1735319566759,0.05474288,94209.0,94198.0,0.3608]
[1735319566760,0.053152,94207.0,94198.0,0.3608]
[1735319567153,0.053153,94205.0,94198.0,0.3608]
[1735319567549,0.00159288,94209.0,94202.0,0.053154]
[1735319567749,0.00159288,94209.0,94198.0,0.3608]
[1735319568062,0.00159288,94209.0,94205.0,0.053152]
[1735319568861,0.00259288,94209.0,94205.0,0.053152]
[1735319569055,0.00259288,94209.0,94206.0,0.3608]
[1735319569853,0.00559288,94209.0,94206.0,0.3608]
[1735319571149,0.00459288,94209.0,94206.0,0.3608]
[1735319571352,0.00559288,94209.0,94206.0,0.3608]
[1735319571748,0.00259288,94209.0,94206.0,0.3608]
[1735319571953,0.00659288,94209.0,94206.0,0.3608]
[1735319572460,0.00659288,94209.0,94207.0,0.053151]
[1735319572661,0.00659288,94209.0,94206.0,0.3608]
[1735319573858,0.00659288,94209.0,94207.0,0.053151]
[1735319574063,0.22060057,94228.0,94220.0,0.053143]
[1735319574363,0.22060057,94228.0,94214.0,0.3608]
[1735319574559,0.053143,94221.0,94214.0,0.3608]
[1735319575258,0.22060057,94228.0,94214.0,0.3608]
[1735319575463,0.22060057,94232.0,94214.0,0.3608]
[1735319575664,0.22060057,94232.0,94223.0,0.053142]
[1735319576160,0.22060057,94232.0,94217.0,0.053145]
[1735319576360,0.053139,94229.0,94223.0,0.3608]
[1735319576668,0.007,94228.0,94223.0,0.3608]
[1735319577362,0.007,94228.0,94226.0,0.05314]
[1735319578155,0.005,94232.0,94231.0,0.053137]
[1735319578461,0.005,94232.0,94231.0,0.413937]
[1735319578659,0.05313,94244.0,94231.0,0.413937]
[1735319578858,0.36136001,94246.0,94231.0,0.413937]
[1735319578859,0.053131,94243.0,94231.0,0.413937]
[1735319579464,0.005,94232.0,94231.0,0.414937]
[1735319580666,0.005,94232.0,94231.0,0.415937]
[1735319581564,0.008,94243.0,94231.0,0.3628]
[1735319581760,0.008,94243.0,94239.0,0.053133]
[1735319582168,0.36136001,94246.0,94239.0,0.053133]
[1735319582371,0.3608,94246.0,94239.0,0.053133]
[1735319582865,0.008,94243.0,94239.0,0.053133]
[1735319583366,0.36736001,94246.0,94239.0,0.053133]
[1735319583567,0.053137,94233.0,94231.0,0.001]
[1735319583863,0.413937,94233.0,94231.0,0.001]
[1735319584368,0.053136,94233.0,94225.0,0.3608]
[1735319584571,0.053136,94233.0,94227.0,0.053139]
[1735319585161,0.053136,94233.0,94231.0,0.001]
[1735319585567,0.061136,94233.0,94231.0,0.001]
[1735319585870,0.05314,94226.0,94225.0,0.3618]
[1735319586068,0.05314,94226.0,94225.0,0.3608]
[1735319586568,0.008,94233.0,94227.0,0.053139]
[1735319587167,0.008,94233.0,94232.0,0.3608]
[1735319588573,0.008,94233.0,94232.0,0.001]
[1735319588867,0.008,94233.0,94232.0,0.054137]
[1735319589067,0.3608,94245.0,94232.0,0.001]
[1735319589372,0.00056001,94257.0,94254.0,0.053124]
[1735319589568,0.28455763,94264.0,94256.0,0.3608]
[1735319590070,0.28455763,94264.0,94258.0,0.053122]
[1735319590372,0.28455763,94264.0,94256.0,0.3608]
[1735319590373,0.22060057,94275.0,94256.0,0.3608]
[1735319590569,0.27371357,94275.0,94264.0,0.053119]
[1735319590768,0.053114,94272.0,94264.0,0.053119]
[1735319591970,0.053116,94270.0,94264.0,0.001]
[1735319592167,0.053118,94266.0,94264.0,0.001]
[1735319592373,0.053127,94251.0,94243.0,0.053131]
[1735319592668,0.053134,94237.0,94234.0,0.3608]
[1735319593764,0.3608,94246.0,94234.0,0.3608]
[1735319594167,0.053132,94242.0,94234.0,0.3608]
[1735319594664,0.36140001,94246.0,94240.0,0.053132]
[1735319594973,0.053127,94250.0,94240.0,0.053132]
[1735319595674,0.053127,94250.0,94235.0,0.00559151]
[1735319595675,0.3608,94249.0,94235.0,0.00559151]
[1735319595873,0.053134,94239.0,94235.0,0.00159151]
[1735319596267,0.053131,94244.0,94235.0,0.00159151]
[1735319596662,0.413935,94237.0,94235.0,0.00159151]
[1735319596869,0.053139,94228.0,94216.0,0.053146]
[1735319597076,0.053142,94224.0,94216.0,0.053146]
[1735319597373,0.053142,94224.0,94214.0,0.3608]
[1735319597581,0.36140001,94227.0,94219.0,0.053144]
[1735319597771,0.3608,94227.0,94221.0,0.053143]
[1735319598875,0.41394,94227.0,94221.0,0.053143]
[1735319600281,0.3608,94227.0,94223.0,0.053142]
[1735319600469,0.0365,94236.0,94226.0,0.3608]
[1735319600470,0.053137,94233.0,94226.0,0.3608]
[1735319600687,0.053138,94231.0,94226.0,0.3608]
[1735319601781,0.053138,94231.0,94226.0,0.3638]
[1735319602077,0.053139,94229.0,94226.0,0.3638]
[1735319602278,0.3608,94227.0,94226.0,0.003]
[1735319602481,0.05315,94209.0,94206.0,0.36239198]
[1735319602682,0.3608,94218.0,94206.0,0.37081588]
[1735319602871,0.053141,94225.0,94217.0,0.3608]
[1735319603074,0.3608,94233.0,94217.0,0.3608]
[1735319603272,0.053142,94223.0,94217.0,0.3608]
[1735319603487,0.3608,94233.0,94217.0,0.3608]
[1735319603778,0.053138,94230.0,94222.0,0.053142]
[1735319604374,0.053138,94230.0,94226.0,0.002]
[1735319604681,0.28455763,94231.0,94226.0,0.002]
[1735319604880,0.28455763,94231.0,94225.0,0.3608]
[1735319605179,0.053146,94226.0,94225.0,0.3608]
[1735319606476,0.002,94230.0,94225.0,0.3608]
[1735319607673,1e-08,94235.0,94234.0,0.053141]
[1735319607879,0.45951849,94243.0,94242.0,0.053137]
[1735319608080,0.24080887,94243.0,94242.0,0.413937]
[1735319608285,0.04536887,94243.0,94242.0,1.043937]
[1735319608583,0.28399045,94255.0,94254.0,0.05313]
[1735319608780,0.28399045,94255.0,94254.0,0.41393]
[1735319609788,0.36136001,94271.0,94263.0,0.053125]
[1735319609982,0.3608,94271.0,94263.0,0.053125]
[1735319610786,0.3608,94271.0,94269.0,0.053121]
[1735319611190,0.3688,94271.0,94269.0,0.053121]
[1735319612389,0.3688,94271.0,94269.0,0.054121]
[1735319613095,0.3688,94271.0,94269.0,0.055121]
[1735319613586,0.008,94271.0,94269.0,0.055121]
[1735319613888,0.008,94271.0,94269.0,0.06367991]
[1735319615383,0.413908,94293.0,94269.0,0.00955891]
[1735319615585,0.413908,94293.0,94288.0,0.05311]
[1735319617584,0.419908,94293.0,94288.0,0.05311]
[1735319617789,0.3668,94293.0,94279.0,0.3608]
[1735319618188,0.006,94293.0,94291.0,0.413909]
[1735319619395,0.053109,94292.0,94281.0,0.053114]
[1735319619688,0.053111,94288.0,94282.0,0.053114]
[1735319620591,0.10822378,94292.0,94279.0,0.36959151]
[1735319620784,0.0363,94287.0,94281.0,0.002]
[1735319620984,0.053114,94282.0,94281.0,0.002]
[1735319621394,0.053114,94282.0,94279.0,0.36959151]
[1735319622186,0.053114,94282.0,94281.0,0.004]
[1735319623298,0.0691,94286.0,94281.0,0.004]
[1735319623496,0.0344,94286.0,94281.0,0.057115]
[1735319623796,0.0344,94286.0,94282.0,0.053114]
[1735319623980,0.1,94300.0,94279.0,0.37259151]
[1735319624293,0.1,94300.0,94299.0,0.3608]
[1735319626187,0.053106,94296.0,94292.0,0.053108]
[1735319626386,0.1,94300.0,94295.0,0.053106]
[1735319626991,0.1,94300.0,94291.0,0.36937828]
[1735319627199,0.1,94300.0,94299.0,0.3608]
[1735319627788,0.01400001,94300.0,94299.0,0.3608]
[1735319628088,0.00241147,94300.0,94299.0,0.3608]
[1735319631691,0.0345,94324.0,94323.0,0.053091]
[1735319634101,0.3953,94324.0,94303.0,0.3608]
[1735319634305,0.3608,94314.0,94313.0,0.053097]
[1735319635295,0.3608,94314.0,94302.0,0.053102]
[1735319635495,0.3608,94305.0,94288.0,0.3608]
[1735319635699,0.053102,94304.0,94282.0,0.3608]
[1735319635996,0.053102,94304.0,94300.0,0.053104]
[1735319636305,0.36136001,94305.0,94303.0,0.053102]
[1735319636602,0.3608,94305.0,94303.0,0.053102]
[1735319636792,0.39726001,94313.0,94310.0,0.053098]
[1735319636993,0.3967,94313.0,94310.0,0.053098]
[1735319638698,0.0363,94312.0,94310.0,0.053098]
[1735319640498,0.0403,94312.0,94310.0,0.053098]
[1735319640705,0.0403,94312.0,94300.0,0.053104]
[1735319640898,0.05311,94290.0,94284.0,0.18990368]
[1735319641199,0.3608,94288.0,94284.0,0.25183227]
[1735319641603,0.413911,94288.0,94284.0,0.19871927]
[1735319641802,0.053112,94285.0,94284.0,0.13470368]
[1735319641998,0.053112,94285.0,94284.0,0.14170368]
[1735319642500,0.053112,94285.0,94284.0,0.007]
[1735319642902,0.053112,94285.0,94284.0,0.008]
[1735319643494,0.053112,94285.0,94284.0,0.001]
[1735319643797,0.053112,94285.0,94284.0,0.008]
[1735319644105,0.36236001,94288.0,94274.0,0.3608]
[1735319644309,0.053118,94275.0,94274.0,0.3608]
[1735319644800,0.053118,94275.0,94269.0,0.06331095]
[1735319645201,0.36136001,94280.0,94271.0,0.05312]
[1735319645410,0.3608,94280.0,94272.0,0.053119]
[1735319645804,0.053119,94274.0,94269.0,0.00859908]
[1735319645998,0.3608,94280.0,94255.0,0.99184]
[1735319645999,0.3608,94271.0,94256.0,0.053128]
[1735319646307,0.053125,94264.0,94258.0,0.053127]
[1735319646496,0.3608,94280.0,94263.0,0.3608]
[1735319646692,0.0369,94279.0,94268.0,0.053122]
[1735319646897,0.05312,94272.0,94269.0,0.002]
[1735319647407,0.053121,94270.0,94269.0,0.002]
[1735319647797,0.0369,94279.0,94263.0,0.3648]
[1735319648103,0.0369,94279.0,94263.0,0.3608]
[1735319648408,0.053121,94270.0,94269.0,0.002]
[1735319648809,0.053116,94278.0,94269.0,0.001]
[1735319649109,0.053121,94270.0,94269.0,0.001]
[1735319649301,0.054121,94270.0,94269.0,0.001]
[1735319650511,0.054121,94270.0,94263.0,0.3648]
[1735319651006,0.054121,94270.0,94263.0,0.3608]
[1735319651204,0.053123,94266.0,94263.0,0.3608]
[1735319651408,0.053124,94265.0,94263.0,0.3608]
[1735319651910,0.053124,94265.0,94263.0,0.3638]
[1735319654004,0.053124,94265.0,94263.0,0.3628]
[1735319654708,0.3608,94271.0,94245.0,0.3608]
[1735319654709,0.3608,94264.0,94245.0,0.3608]
[1735319654898,0.053133,94249.0,94248.0,0.00104]
[1735319655095,0.053135,94246.0,94244.0,0.00159139]